[Event "UK Open Blitz Championships 2024 - London Qualifier"]
[Site "London, United Kingdom"]
[Date "2024.09.21"]
[Round "13.4"]
[White "Ghasi, Ameet K"]
[Black "Stojanas, Justinas"]
[Result "1-0"]
[TimeControl "3 minutes + 2 seconds incr. from move 1"]
[WhiteTitle "IM"]
[WhiteFideId "409200"]
[BlackFideId "12802328"]
[WhiteElo "2524"]
[BlackElo "1983"]

1. Nf3 {[%clk 00:03:02]} {[%emt 00:00:02]} d6 {[%clk 00:03:02]} {[%emt
00:00:02]} 2. d4 {[%clk 00:03:01]} {[%emt 00:00:03]} g6 {[%clk 00:03:03]}
{[%emt 00:00:02]} 3. g3 {[%clk 00:03:02]} Bg7 {[%clk 00:03:02]} {[%emt
00:00:03]} 4. Bg2 {[%clk 00:03:03]} {[%emt 00:00:01]} Nf6 {[%clk 00:03:01]}
{[%emt 00:00:03]} 5. O-O {[%clk 00:03:03]} {[%emt 00:00:02]} O-O {[%clk
00:03:01]} {[%emt 00:00:03]} 6. b3 {[%clk 00:03:02]} {[%emt 00:00:03]} Nfd7
{[%clk 00:02:51]} {[%emt 00:00:12]} 7. Bb2 {[%emt 00:00:11]} c5 {[%clk
00:02:52]} 8. Qc1 {[%clk 00:02:48]} {[%emt 00:00:09]} Nc6 {[%clk 00:02:40]}
{[%emt 00:00:13]} 9. d5 {[%clk 00:02:48]} {[%emt 00:00:02]} Bxb2 {[%clk
00:02:39]} {[%emt 00:00:03]} 10. Qxb2 {[%clk 00:02:49]} {[%emt 00:00:02]} Nce5
{[%clk 00:02:34]} {[%emt 00:00:07]} 11. Nfd2 {[%clk 00:02:48]} {[%emt
00:00:02]} f5 {[%clk 00:02:32]} {[%emt 00:00:04]} 12. Na3 {[%clk 00:02:35]}
{[%emt 00:00:15]} a6 {[%clk 00:02:31]} {[%emt 00:00:03]} 13. h3 {[%clk
00:02:21]} {[%emt 00:00:16]} f4 {[%clk 00:02:30]} {[%emt 00:00:02]} 14. gxf4
{[%clk 00:02:18]} {[%emt 00:00:06]} Rxf4 {[%clk 00:02:31]} {[%emt 00:00:02]} 15.
e3 {[%clk 00:02:20]} Rf8 {[%clk 00:02:12]} {[%emt 00:00:20]} 16. f4 {[%clk
00:02:21]} {[%emt 00:00:01]} Nf7 {[%clk 00:02:10]} {[%emt 00:00:04]} 17. e4
{[%clk 00:01:45]} {[%emt 00:00:38]} b5 {[%clk 00:02:11]} 18. Rae1 {[%clk
00:01:39]} {[%emt 00:00:07]} Bb7 {[%clk 00:02:12]} {[%emt 00:00:01]} 19. c4
{[%clk 00:01:34]} {[%emt 00:00:07]} Qa5 {[%clk 00:02:04]} {[%emt 00:00:10]} 20.
Nf3 {[%clk 00:01:29]} {[%emt 00:00:07]} Nb6 {[%clk 00:02:00]} {[%emt 00:00:05]}
21. e5 {[%clk 00:01:28]} {[%emt 00:00:03]} Rab8 {[%clk 00:01:54]} {[%emt
00:00:07]} 22. f5 {[%clk 00:01:02]} {[%emt 00:00:28]} gxf5 {[%clk 00:01:46]}
{[%emt 00:00:10]} 23. e6 {[%clk 00:00:58]} {[%emt 00:00:07]} Ne5 {[%clk
00:01:39]} {[%emt 00:00:09]} 24. Nxe5 {[%clk 00:00:53]} {[%emt 00:00:07]} dxe5
{[%clk 00:01:40]} {[%emt 00:00:01]} 25. Qc1 {[%clk 00:00:53]} {[%emt 00:00:02]}
e4 {[%clk 00:01:17]} {[%emt 00:00:24]} 26. Qg5+ {[%clk 00:00:37]} {[%emt
00:00:18]} Kh8 {[%clk 00:01:18]} {[%emt 00:00:01]} 27. Nc2 {[%clk 00:00:28]}
{[%emt 00:00:11]} Qc3 {[%clk 00:01:16]} {[%emt 00:00:04]} 28. Ne3 {[%clk
00:00:27]} {[%emt 00:00:03]} bxc4 {[%clk 00:01:03]} {[%emt 00:00:14]} 29. bxc4
{[%clk 00:00:15]} {[%emt 00:00:14]} Nxc4 {[%clk 00:00:59]} {[%emt 00:00:06]} 30.
Nxf5 {[%clk 00:00:16]} Rg8 {[%clk 00:00:52]} {[%emt 00:00:10]} 31. Qxe7 {[%clk
00:00:10]} {[%emt 00:00:08]} Bxd5 {[%clk 00:00:52]} {[%emt 00:00:01]} 32. Nh6
{[%clk 00:00:08]} {[%emt 00:00:05]} Rxg2+ {[%clk 00:00:49]} {[%emt 00:00:05]}
33. Kxg2 {[%clk 00:00:08]} {[%emt 00:00:02]} e3+ {[%clk 00:00:49]} {[%emt
00:00:02]} 34. Kg1 {[%clk 00:00:05]} {[%emt 00:00:05]} Qg7+ {[%clk 00:00:35]}
{[%emt 00:00:16]} 35. Qxg7+ {[%clk 00:00:06]} {[%emt 00:00:01]} Kxg7 {[%clk
00:00:36]} 36. Nf5+ {[%clk 00:00:07]} {[%emt 00:00:01]} Kh8 {[%clk 00:00:29]}
{[%emt 00:00:09]} 37. Nxe3 {[%clk 00:00:05]} {[%emt 00:00:04]} Rg8+ {[%clk
00:00:27]} {[%emt 00:00:04]} 38. Ng4 {[%clk 00:00:05]} {[%emt 00:00:02]} h5
{[%clk 00:00:26]} {[%emt 00:00:03]} 39. e7 {[%clk 00:00:06]} Nd6 {[%clk
00:00:14]} {[%emt 00:00:13]} 40. Re5 {[%clk 00:00:06]} {[%emt 00:00:02]} hxg4
{[%clk 00:00:15]} {[%emt 00:00:01]} 41. Rh5+ {[%clk 00:00:07]} Kg7 {[%clk
00:00:16]} {[%emt 00:00:01]} 42. Rxd5 {[%clk 00:00:08]} Ne8 {[%clk 00:00:15]}
{[%emt 00:00:04]} 43. Rg5+ {[%clk 00:00:09]} Kh7 {[%clk 00:00:15]} {[%emt
00:00:01]} 44. Rxg8 {[%clk 00:00:10]} Kxg8 {[%clk 00:00:17]} {[%emt 00:00:01]}
45. Rf8+ {[%clk 00:00:12]} 1-0

[Event "UK Open Blitz Championships 2024 - London Qualifier"]
[Site "London, United Kingdom"]
[Date "2024.09.21"]
[Round "13.5"]
[White "Mirzoeva, Elmira"]
[Black "Roberson, Peter T"]
[Result "0-1"]
[TimeControl "3 minutes + 2 seconds incr. from move 1"]
[WhiteTitle "WGM"]
[BlackTitle "IM"]
[WhiteFideId "4127951"]
[BlackFideId "412384"]
[WhiteElo "2094"]
[BlackElo "2346"]

1. d4 {[%clk 00:03:03]} c5 {[%clk 00:03:03]} 2. d5 {[%clk 00:03:03]} {[%emt
00:00:02]} g6 {[%clk 00:03:05]} {[%emt 00:00:01]} 3. Nc3 {[%clk 00:03:02]}
{[%emt 00:00:03]} Bg7 {[%clk 00:03:05]} {[%emt 00:00:01]} 4. e4 {[%clk
00:03:03]} {[%emt 00:00:01]} d6 {[%clk 00:03:06]} {[%emt 00:00:01]} 5. Bb5+
{[%clk 00:03:03]} {[%emt 00:00:02]} Bd7 {[%clk 00:03:06]} {[%emt 00:00:01]} 6.
Be2 {[%clk 00:03:03]} {[%emt 00:00:01]} Nf6 {[%clk 00:03:07]} {[%emt 00:00:01]}
7. h3 {[%clk 00:03:03]} {[%emt 00:00:03]} O-O {[%clk 00:03:07]} {[%emt
00:00:02]} 8. Nf3 {[%clk 00:03:03]} {[%emt 00:00:02]} e6 {[%clk 00:03:01]}
{[%emt 00:00:08]} 9. O-O {[%clk 00:02:59]} {[%emt 00:00:06]} exd5 {[%clk
00:03:01]} {[%emt 00:00:02]} 10. exd5 {[%clk 00:03:00]} {[%emt 00:00:01]} Re8
{[%clk 00:03:01]} {[%emt 00:00:02]} 11. Bd3 {[%clk 00:02:53]} {[%emt 00:00:09]}
Na6 {[%clk 00:02:52]} {[%emt 00:00:10]} 12. Bf4 {[%clk 00:02:50]} {[%emt
00:00:05]} Qc7 {[%clk 00:02:53]} {[%emt 00:00:01]} 13. a3 {[%clk 00:02:47]}
{[%emt 00:00:05]} Rab8 {[%clk 00:02:46]} {[%emt 00:00:09]} 14. Nb5 {[%clk
00:02:09]} {[%emt 00:00:40]} Bxb5 {[%clk 00:02:45]} {[%emt 00:00:03]} 15. Bxb5
{[%clk 00:02:10]} {[%emt 00:00:01]} Re7 {[%clk 00:02:45]} 16. c4 {[%clk
00:01:54]} {[%emt 00:00:18]} Qd8 {[%clk 00:02:26]} {[%emt 00:00:21]} 17. b4
{[%clk 00:00:45]} {[%emt 00:01:11]} Ne4 {[%clk 00:02:12]} {[%emt 00:00:16]} 18.
Re1 {[%clk 00:00:23]} {[%emt 00:00:25]} cxb4 {[%clk 00:01:59]} {[%emt
00:00:13]} 19. axb4 {[%clk 00:00:22]} {[%emt 00:00:03]} Nc3 {[%clk 00:01:28]}
{[%emt 00:00:33]} 20. Rxe7 {[%clk 00:00:16]} {[%emt 00:00:09]} Qxe7 {[%clk
00:01:29]} {[%emt 00:00:01]} 21. Qd2 {[%clk 00:00:04]} {[%emt 00:00:13]} Ne2+
{[%clk 00:01:26]} {[%emt 00:00:05]} 22. Kh1 {[%clk 00:00:05]} {[%emt 00:00:02]}
Bxa1 {[%clk 00:01:24]} {[%emt 00:00:04]} 23. c5 {[%clk 00:00:06]} {[%emt
00:00:02]} Nxf4 {[%clk 00:01:22]} {[%emt 00:00:04]} 24. Qxf4 {[%clk 00:00:07]}
Be5 {[%clk 00:01:18]} {[%emt 00:00:05]} 25. Qe3 {[%clk 00:00:06]} {[%emt
00:00:03]} Nxb4 {[%clk 00:01:12]} {[%emt 00:00:08]} 26. cxd6 {[%clk 00:00:06]}
{[%emt 00:00:03]} Bxd6 {[%clk 00:01:11]} {[%emt 00:00:02]} 27. Qxa7 {[%clk
00:00:06]} Nxd5 {[%clk 00:01:06]} {[%emt 00:00:07]} 28. g3 {[%clk 00:00:06]}
{[%emt 00:00:03]} Rc8 {[%clk 00:00:55]} {[%emt 00:00:13]} 29. Kg2 {[%clk
00:00:07]} {[%emt 00:00:02]} Rc2 {[%clk 00:00:47]} {[%emt 00:00:09]} 30. Nd4
{[%clk 00:00:07]} {[%emt 00:00:02]} Qe4+ {[%clk 00:00:40]} {[%emt 00:00:08]} 31.
Kh2 {[%clk 00:00:06]} {[%emt 00:00:03]} Rxf2+ {[%clk 00:00:40]} {[%emt
00:00:03]} 0-1

[Event "UK Open Blitz Championships 2024 - London Qualifier"]
[Site "London, United Kingdom"]
[Date "2024.09.21"]
[Round "14.2"]
[White "Royal, Shreyas"]
[Black "Czopor, Maciej"]
[Result "1-0"]
[TimeControl "3 minutes + 2 seconds incr. from move 1"]
[WhiteTitle "IM"]
[BlackTitle "FM"]
[WhiteFideId "448869"]
[BlackFideId "21805431"]
[WhiteElo "2331"]
[BlackElo "2320"]

1. Nf3 {[%clk 00:03:03]} {[%emt 00:00:02]} Nf6 {[%clk 00:03:04]} 2. d4 {[%clk
00:03:04]} e6 {[%clk 00:03:05]} 3. c4 {[%clk 00:03:04]} {[%emt 00:00:02]} d5
{[%clk 00:03:05]} {[%emt 00:00:03]} 4. Nc3 {[%clk 00:03:05]} Bb4 {[%clk
00:03:03]} {[%emt 00:00:04]} 5. Qa4+ {[%clk 00:03:05]} {[%emt 00:00:03]} Nc6
{[%clk 00:03:04]} 6. e3 {[%clk 00:03:07]} O-O {[%clk 00:03:04]} {[%emt
00:00:02]} 7. Qc2 {[%clk 00:03:07]} {[%emt 00:00:01]} Re8 {[%clk 00:03:05]} 8.
Bd2 {[%clk 00:03:04]} {[%emt 00:00:05]} Bf8 {[%clk 00:02:27]} {[%emt 00:00:40]}
9. Be2 {[%clk 00:03:03]} {[%emt 00:00:04]} b6 {[%clk 00:02:18]} {[%emt
00:00:11]} 10. cxd5 {[%clk 00:02:50]} {[%emt 00:00:15]} exd5 {[%clk 00:02:19]}
11. Nb5 {[%clk 00:02:51]} Bb7 {[%clk 00:02:11]} {[%emt 00:00:10]} 12. O-O
{[%clk 00:02:47]} {[%emt 00:00:06]} a6 {[%clk 00:02:12]} {[%emt 00:00:02]} 13.
Nc3 {[%clk 00:02:48]} Ne7 {[%clk 00:02:00]} {[%emt 00:00:13]} 14. Bd3 {[%clk
00:02:48]} {[%emt 00:00:02]} Ng6 {[%clk 00:02:00]} {[%emt 00:00:03]} 15. Rfd1
{[%clk 00:02:47]} {[%emt 00:00:02]} c5 {[%clk 00:01:58]} {[%emt 00:00:04]} 16.
dxc5 {[%clk 00:02:48]} {[%emt 00:00:02]} bxc5 {[%clk 00:01:59]} 17. Ne2 {[%clk
00:02:39]} {[%emt 00:00:11]} Qb6 {[%clk 00:01:55]} {[%emt 00:00:06]} 18. Ng3
{[%clk 00:02:37]} {[%emt 00:00:04]} Ne4 {[%clk 00:01:51]} {[%emt 00:00:05]} 19.
Be1 {[%clk 00:02:34]} {[%emt 00:00:05]} Rac8 {[%clk 00:01:51]} {[%emt
00:00:03]} 20. Bxe4 {[%clk 00:02:33]} {[%emt 00:00:03]} dxe4 {[%clk 00:01:51]}
21. Nd2 {[%clk 00:02:34]} Qe6 {[%clk 00:01:43]} {[%emt 00:00:10]} 22. Nc4
{[%clk 00:02:31]} {[%emt 00:00:05]} Nh4 {[%clk 00:01:23]} {[%emt 00:00:22]} 23.
Rac1 {[%clk 00:02:20]} {[%emt 00:00:12]} Rcd8 {[%clk 00:01:04]} {[%emt
00:00:22]} 24. Ba5 {[%clk 00:02:10]} {[%emt 00:00:12]} Rd3 {[%clk 00:00:46]}
{[%emt 00:00:20]} 25. Qe2 {[%clk 00:02:11]} Bd5 {[%clk 00:00:30]} {[%emt
00:00:19]} 26. b3 {[%clk 00:02:11]} {[%emt 00:00:02]} Bxc4 {[%clk 00:00:20]}
{[%emt 00:00:12]} 27. Rxc4 {[%clk 00:02:06]} {[%emt 00:00:07]} Qd5 {[%clk
00:00:21]} 28. Rdc1 {[%clk 00:02:03]} {[%emt 00:00:05]} Re6 {[%clk 00:00:16]}
{[%emt 00:00:07]} 29. h3 {[%clk 00:01:48]} {[%emt 00:00:17]} Nf5 {[%clk
00:00:12]} {[%emt 00:00:06]} 30. Nh5 {[%clk 00:01:43]} {[%emt 00:00:07]} Bd6
{[%clk 00:00:06]} {[%emt 00:00:08]} 31. Qg4 {[%clk 00:01:43]} g6 {[%clk
00:00:06]} {[%emt 00:00:03]} 32. Nf4 {[%clk 00:01:41]} {[%emt 00:00:04]} Bxf4
{[%clk 00:00:07]} 33. Qxf4 {[%clk 00:01:41]} {[%emt 00:00:02]} Rd1+ {[%clk
00:00:06]} {[%emt 00:00:03]} 34. Rxd1 {[%clk 00:01:42]} Qxd1+ {[%clk 00:00:07]}
{[%emt 00:00:01]} 35. Kh2 {[%clk 00:01:43]} Qd5 {[%clk 00:00:07]} {[%emt
00:00:02]} 36. Qb8+ {[%clk 00:01:39]} {[%emt 00:00:07]} Kg7 {[%clk 00:00:08]}
37. Bc3+ {[%clk 00:01:40]} Kh6 {[%clk 00:00:03]} {[%emt 00:00:08]} 38. Qf8+
{[%clk 00:01:39]} {[%emt 00:00:02]} Kg5 {[%clk 00:00:03]} {[%emt 00:00:02]} 39.
Qxf7 {[%clk 00:01:30]} {[%emt 00:00:11]} Qd6+ {[%clk 00:00:04]} {[%emt
00:00:01]} 40. g3 {[%clk 00:01:30]} {[%emt 00:00:02]} h5 {[%clk 00:00:03]}
{[%emt 00:00:02]} 41. h4+ {[%clk 00:01:07]} {[%emt 00:00:25]} Nxh4 {[%clk
00:00:03]} {[%emt 00:00:02]} 42. Qf4+ {[%clk 00:01:07]} {[%emt 00:00:02]} Qxf4
{[%clk 00:00:04]} {[%emt 00:00:02]} 43. exf4+ {[%clk 00:01:08]} Kg4 {[%clk
00:00:05]} {[%emt 00:00:01]} 44. gxh4 {[%clk 00:01:09]} {[%emt 00:00:02]} Kxf4
{[%clk 00:00:03]} {[%emt 00:00:04]} 45. Rxc5 {[%clk 00:01:09]} {[%emt
00:00:01]} Kf3 {[%clk 00:00:04]} {[%emt 00:00:01]} 46. Bd4 {[%clk 00:01:10]}
{[%emt 00:00:01]} Kg4 {[%clk 00:00:03]} {[%emt 00:00:03]} 47. Be3 {[%clk
00:01:06]} {[%emt 00:00:06]} Kxh4 {[%clk 00:00:04]} {[%emt 00:00:01]} 48. b4
{[%clk 00:01:07]} Kg4 {[%clk 00:00:04]} {[%emt 00:00:02]} 49. a4 {[%clk
00:01:08]} Kf3 {[%clk 00:00:03]} {[%emt 00:00:04]} 50. b5 {[%clk 00:01:08]}
{[%emt 00:00:02]} axb5 {[%clk 00:00:04]} 51. axb5 {[%clk 00:01:09]} h4 {[%clk
00:00:03]} {[%emt 00:00:03]} 52. Rc6 {[%clk 00:01:09]} {[%emt 00:00:02]} Re5
{[%clk 00:00:03]} {[%emt 00:00:02]} 53. b6 {[%clk 00:01:09]} g5 {[%clk
00:00:03]} {[%emt 00:00:03]} 54. b7 {[%clk 00:01:07]} {[%emt 00:00:04]} g4
{[%clk 00:00:03]} {[%emt 00:00:01]} 55. Rf6+ {[%clk 00:01:08]} Ke2 {[%clk
00:00:04]} {[%emt 00:00:01]} 56. b8=Q {[%clk 00:01:08]} {[%emt 00:00:02]} g3
{[%clk 00:00:05]} {[%emt 00:00:02]} 57. fxg3 {[%clk 00:01:09]} {[%emt
00:00:01]} hxg3 {[%clk 00:00:05]} {[%emt 00:00:02]} 58. Kxg3 {[%clk 00:01:10]}
{[%emt 00:00:01]} 1-0

[Event "UK Open Blitz Championships 2024 - London Qualifier"]
[Site "London, United Kingdom"]
[Date "2024.09.21"]
[Round "14.3"]
[White "Nikologorskii, Matfei"]
[Black "Ghasi, Ameet K"]
[Result "1/2-1/2"]
[TimeControl "3 minutes + 2 seconds incr. from move 1"]
[WhiteTitle "CM"]
[BlackTitle "IM"]
[WhiteFideId "24102474"]
[BlackFideId "409200"]
[WhiteElo "2154"]
[BlackElo "2524"]

1. e4 {[%clk 00:03:02]} d6 {[%clk 00:03:03]} {[%emt 00:00:02]} 2. d4 {[%clk
00:03:02]} {[%emt 00:00:01]} g6 {[%clk 00:03:04]} 3. h4 {[%clk 00:03:03]}
{[%emt 00:00:02]} Nf6 {[%clk 00:03:02]} {[%emt 00:00:04]} 4. Nc3 {[%clk
00:03:03]} {[%emt 00:00:02]} Nc6 {[%clk 00:02:56]} {[%emt 00:00:08]} 5. Be2
{[%clk 00:03:02]} {[%emt 00:00:03]} e5 {[%clk 00:02:50]} {[%emt 00:00:08]} 6.
dxe5 {[%clk 00:02:41]} {[%emt 00:00:22]} dxe5 {[%clk 00:02:39]} {[%emt
00:00:13]} 7. Qxd8+ {[%clk 00:02:41]} {[%emt 00:00:02]} Nxd8 {[%clk 00:02:37]}
{[%emt 00:00:04]} 8. h5 {[%clk 00:02:40]} {[%emt 00:00:04]} Ne6 {[%clk
00:02:18]} {[%emt 00:00:22]} 9. hxg6 {[%clk 00:02:35]} {[%emt 00:00:07]} fxg6
{[%clk 00:02:18]} {[%emt 00:00:02]} 10. Nf3 {[%clk 00:02:35]} {[%emt 00:00:01]}
Bd6 {[%clk 00:02:19]} {[%emt 00:00:01]} 11. Bd2 {[%clk 00:02:08]} {[%emt
00:00:30]} Bd7 {[%clk 00:02:13]} {[%emt 00:00:08]} 12. O-O-O {[%clk 00:01:38]}
{[%emt 00:00:32]} Bc6 {[%clk 00:02:07]} {[%emt 00:00:07]} 13. Rh4 {[%clk
00:01:39]} {[%emt 00:00:02]} Rd8 {[%clk 00:01:39]} {[%emt 00:00:30]} 14. Bc4
{[%clk 00:01:26]} {[%emt 00:00:14]} Bd7 {[%clk 00:00:52]} {[%emt 00:00:50]} 15.
Nd5 {[%clk 00:01:21]} {[%emt 00:00:07]} Nxd5 {[%clk 00:00:39]} {[%emt
00:00:15]} 16. exd5 {[%clk 00:01:18]} {[%emt 00:00:05]} Ng7 {[%clk 00:00:34]}
{[%emt 00:00:06]} 17. Nxe5 {[%clk 00:01:06]} {[%emt 00:00:14]} O-O {[%clk
00:00:28]} {[%emt 00:00:08]} 18. Nxd7 {[%clk 00:00:56]} {[%emt 00:00:12]} Rxd7
{[%clk 00:00:29]} {[%emt 00:00:01]} 19. f3 {[%clk 00:00:55]} {[%emt 00:00:03]}
Re7 {[%clk 00:00:30]} 20. Re1 {[%clk 00:00:41]} {[%emt 00:00:16]} Rxe1+ {[%clk
00:00:20]} {[%emt 00:00:13]} 21. Bxe1 {[%clk 00:00:42]} Nf5 {[%clk 00:00:20]}
{[%emt 00:00:01]} 22. Re4 {[%clk 00:00:40]} {[%emt 00:00:04]} a6 {[%clk
00:00:22]} 23. a4 {[%clk 00:00:41]} {[%emt 00:00:01]} Kf7 {[%clk 00:00:18]}
{[%emt 00:00:06]} 24. b4 {[%clk 00:00:36]} {[%emt 00:00:07]} h5 {[%clk
00:00:19]} {[%emt 00:00:01]} 25. c3 {[%clk 00:00:37]} {[%emt 00:00:01]} Kf6
{[%clk 00:00:10]} {[%emt 00:00:10]} 26. Bd3 {[%clk 00:00:35]} {[%emt 00:00:04]}
Kf7 {[%clk 00:00:08]} {[%emt 00:00:04]} 27. c4 {[%clk 00:00:35]} {[%emt
00:00:02]} b6 {[%clk 00:00:09]} 28. Kc2 {[%clk 00:00:33]} {[%emt 00:00:04]} a5
{[%clk 00:00:09]} {[%emt 00:00:02]} 29. bxa5 {[%clk 00:00:31]} {[%emt
00:00:04]} bxa5 {[%clk 00:00:11]} 30. Bf2 {[%clk 00:00:32]} Bb4 {[%clk
00:00:12]} {[%emt 00:00:01]} 31. c5 {[%clk 00:00:31]} {[%emt 00:00:02]} Rd8
{[%clk 00:00:09]} {[%emt 00:00:04]} 32. Bc4 {[%clk 00:00:29]} {[%emt 00:00:05]}
Kf8 {[%clk 00:00:10]} 33. g4 {[%clk 00:00:28]} {[%emt 00:00:03]} hxg4 {[%clk
00:00:11]} {[%emt 00:00:01]} 34. fxg4 {[%clk 00:00:28]} {[%emt 00:00:02]} Nh6
{[%clk 00:00:11]} {[%emt 00:00:01]} 35. Kd3 {[%clk 00:00:23]} {[%emt 00:00:07]}
Rd7 {[%clk 00:00:11]} {[%emt 00:00:03]} 36. Kd4 {[%clk 00:00:16]} {[%emt
00:00:09]} Nf7 {[%clk 00:00:08]} {[%emt 00:00:05]} 37. Be3 {[%clk 00:00:17]}
{[%emt 00:00:01]} Nd8 {[%clk 00:00:09]} {[%emt 00:00:02]} 38. Kd3 {[%clk
00:00:16]} {[%emt 00:00:03]} Rf7 {[%clk 00:00:09]} {[%emt 00:00:02]} 39. Rf4
{[%clk 00:00:16]} {[%emt 00:00:01]} Rxf4 {[%clk 00:00:04]} {[%emt 00:00:07]} 40.
Bxf4 {[%clk 00:00:18]} Nb7 {[%clk 00:00:05]} 41. c6 {[%clk 00:00:18]} {[%emt
00:00:01]} Nd6 {[%clk 00:00:07]} 42. Kd4 {[%clk 00:00:16]} {[%emt 00:00:04]}
Ke7 {[%clk 00:00:08]} {[%emt 00:00:01]} 43. Bd3 {[%clk 00:00:17]} Kf7 {[%clk
00:00:09]} 44. g5 {[%clk 00:00:17]} {[%emt 00:00:01]} Ne8 {[%clk 00:00:08]}
{[%emt 00:00:03]} 45. Kc4 {[%clk 00:00:17]} {[%emt 00:00:03]} Nd6+ {[%clk
00:00:09]} 46. Kd4 {[%clk 00:00:13]} {[%emt 00:00:05]} Ne8 {[%clk 00:00:09]}
{[%emt 00:00:02]} 47. Bf1 {[%clk 00:00:13]} {[%emt 00:00:03]} Ke7 {[%clk
00:00:07]} {[%emt 00:00:04]} 48. Bh3 {[%clk 00:00:13]} {[%emt 00:00:02]} Nd6
{[%clk 00:00:09]} {[%emt 00:00:01]} 49. Bxd6+ {[%clk 00:00:10]} {[%emt
00:00:05]} Kxd6 {[%clk 00:00:06]} {[%emt 00:00:05]} 50. Bf1 {[%clk 00:00:07]}
{[%emt 00:00:04]} Ke7 {[%clk 00:00:07]} 51. Bd3 {[%clk 00:00:08]} {[%emt
00:00:01]} Kf7 {[%clk 00:00:09]} 52. Ke5 {[%clk 00:00:04]} {[%emt 00:00:06]}
Bd6+ {[%clk 00:00:10]} 53. Ke4 {[%clk 00:00:06]} Ba3 {[%clk 00:00:10]} {[%emt
00:00:02]} 54. Ke5 {[%clk 00:00:07]} Bd6+ {[%clk 00:00:08]} {[%emt 00:00:04]}
55. Ke4 {[%clk 00:00:05]} {[%emt 00:00:01]} 1/2-1/2